bitfinex-derivatives/quotes_BTCF0:USTF0_20251228
["timestamp","ask_amount","ask_price","bid_price","bid_amount"]
[1766908285366,0.02420232,87786.0,87774.0,0.05721089]
[1766908285565,0.0114001,87788.0,87774.0,0.05721089]
[1766908285761,0.02420235,87787.0,87774.0,0.05721089]
[1766908285964,0.02420235,87786.0,87774.0,0.05721089]
[1766908286170,0.0114001,87788.0,87774.0,0.05721089]
[1766908286475,0.02420235,87787.0,87774.0,0.05721089]
[1766908286679,0.02420235,87786.0,87774.0,0.05721089]
[1766908286975,0.0114001,87788.0,87774.0,0.05721089]
[1766908287175,0.02420237,87787.0,87774.0,0.05721089]
[1766908287475,0.02420237,87786.0,87774.0,0.05721089]
[1766908287674,0.0114001,87788.0,87774.0,0.05721089]
[1766908287874,0.02420242,87787.0,87774.0,0.05721089]
[1766908288075,0.02420242,87786.0,87774.0,0.05721089]
[1766908288271,0.0114001,87788.0,87774.0,0.05721089]
[1766908288471,0.02420252,87787.0,87775.0,0.0114018]
[1766908288674,0.02420252,87786.0,87775.0,0.0114018]
[1766908288975,0.0114001,87788.0,87775.0,0.0114018]
[1766908289176,0.02420253,87787.0,87774.0,0.05721089]
[1766908289369,0.02420253,87786.0,87774.0,0.05721089]
[1766908289565,0.0114001,87788.0,87774.0,0.05721089]
[1766908289768,0.02420267,87787.0,87774.0,0.05721089]
[1766908289969,0.02420267,87786.0,87774.0,0.05721089]
[1766908290168,0.0114001,87788.0,87774.0,0.05721089]
[1766908290370,0.02420272,87787.0,87774.0,0.05721089]
[1766908290575,0.02420272,87786.0,87774.0,0.05721089]
[1766908290774,0.0114001,87788.0,87774.0,0.05721089]
[1766908290975,0.02420273,87787.0,87774.0,0.05721089]
[1766908291178,0.02420273,87786.0,87774.0,0.05721089]
[1766908291377,0.0114001,87788.0,87774.0,0.05721089]
[1766908291578,0.02420292,87787.0,87774.0,0.06861279]
[1766908291777,0.02420292,87786.0,87774.0,0.06861279]
[1766908291977,0.0114001,87788.0,87774.0,0.06861279]
[1766908292173,0.02420292,87787.0,87774.0,0.06861279]
[1766908292378,0.02420292,87786.0,87774.0,0.05721089]
[1766908292581,0.0114001,87788.0,87774.0,0.05721089]
[1766908292882,0.02420316,87787.0,87774.0,0.05721089]
[1766908293081,0.02420316,87786.0,87774.0,0.05721089]
[1766908293281,0.0114001,87788.0,87774.0,0.05721089]
[1766908293482,0.02420343,87787.0,87774.0,0.05721089]
[1766908293780,0.02420343,87786.0,87774.0,0.05721089]
[1766908293982,0.0114001,87788.0,87774.0,0.05721089]
[1766908294180,0.02420343,87787.0,87774.0,0.05721089]
[1766908294377,0.02420343,87786.0,87774.0,0.05721089]
[1766908294578,0.0114001,87788.0,87774.0,0.05721089]
[1766908294777,0.02420376,87787.0,87774.0,0.05721089]
[1766908294985,0.02420376,87786.0,87774.0,0.05721089]
[1766908295283,0.0114001,87788.0,87774.0,0.05721089]
[1766908295473,0.02420415,87787.0,87774.0,0.05721089]
[1766908295673,0.02420415,87786.0,87774.0,0.05721089]
[1766908295883,0.0114001,87788.0,87774.0,0.05721089]
[1766908296081,0.02420415,87787.0,87774.0,0.05721089]
[1766908296380,0.02420415,87786.0,87774.0,0.05721089]
[1766908296568,0.0114001,87788.0,87774.0,0.05721089]
[1766908296774,0.02420461,87787.0,87774.0,0.05721089]
[1766908296968,0.02420461,87786.0,87774.0,0.05721089]
[1766908297170,0.0114001,87788.0,87774.0,0.05721089]
[1766908297373,0.02417197,87787.0,87774.0,0.05721089]
[1766908297573,0.02417197,87786.0,87774.0,0.05721089]
[1766908297773,0.0114001,87788.0,87774.0,0.05721089]
[1766908297971,0.02417197,87787.0,87774.0,0.05721089]
[1766908298178,0.02417197,87786.0,87774.0,0.05721089]
[1766908298477,0.0114001,87788.0,87774.0,0.05721089]
[1766908298677,0.02417268,87787.0,87774.0,0.05721089]
[1766908298877,0.02417268,87786.0,87774.0,0.05721089]
[1766908299175,0.02417268,87785.0,87774.0,0.05721089]
[1766908299476,0.0114001,87788.0,87774.0,0.05721089]
[1766908299775,0.02417366,87787.0,87774.0,0.05721089]
[1766908299977,0.02417366,87786.0,87774.0,0.05721089]
[1766908300176,0.02417366,87785.0,87774.0,0.05721089]
[1766908300376,0.0114001,87788.0,87774.0,0.05721089]
[1766908300579,0.0114004,87786.0,87774.0,0.05721089]
[1766908300876,0.02417578,87785.0,87774.0,0.05721089]
[1766908301077,0.0114004,87786.0,87774.0,0.00017089]
[1766908301384,0.02417578,87785.0,87774.0,0.00017089]
[1766908301575,0.0114004,87786.0,87774.0,0.00017089]
[1766908301776,0.02417579,87785.0,87774.0,0.00017089]
[1766908301976,0.0114004,87786.0,87774.0,0.00017089]
[1766908302173,0.02417579,87785.0,87774.0,0.00017089]
[1766908302487,0.0114004,87786.0,87774.0,0.00017089]
[1766908302687,0.0241758,87785.0,87774.0,0.00017089]
[1766908302889,0.0114004,87786.0,87774.0,0.00017089]
[1766908303190,0.0241758,87785.0,87774.0,0.00017089]
[1766908303376,0.0114004,87786.0,87774.0,0.00017089]
[1766908303581,0.02417581,87785.0,87774.0,0.00017089]
[1766908303781,0.0114004,87786.0,87774.0,0.00017089]
[1766908303983,0.02417581,87785.0,87774.0,0.00017089]
[1766908304188,0.0114001,87789.0,87774.0,0.00017089]
[1766908304390,0.0114003,87787.0,87774.0,0.00017089]
[1766908304590,0.02417582,87786.0,87774.0,0.00017089]
[1766908304790,0.02417582,87785.0,87774.0,0.00017089]
[1766908305002,0.0114003,87787.0,87774.0,0.00017089]
[1766908305190,0.02417582,87786.0,87774.0,0.00017089]
[1766908305393,0.02417582,87785.0,87774.0,0.00017089]
[1766908305595,0.0114003,87787.0,87774.0,0.00017089]
[1766908305893,0.02417582,87786.0,87774.0,0.00017089]
[1766908306093,0.02417582,87785.0,87774.0,0.00017089]
[1766908306294,0.0114003,87787.0,87774.0,0.00017089]
[1766908306495,0.02417583,87786.0,87774.0,0.00017089]
[1766908306695,0.02417583,87785.0,87774.0,0.00017089]
[1766908306896,0.0114003,87787.0,87774.0,0.00017089]
[1766908307089,0.02417584,87786.0,87774.0,0.00017089]
[1766908307388,0.02417584,87785.0,87774.0,0.00017089]
[1766908307587,0.0114003,87787.0,87774.0,0.00017089]
[1766908307793,0.02417585,87786.0,87774.0,0.00017089]
[1766908307993,0.02417585,87785.0,87774.0,0.00017089]
[1766908308186,0.0114003,87787.0,87774.0,0.00017089]
[1766908308386,0.02417586,87786.0,87774.0,0.00017089]
[1766908308586,0.02417586,87785.0,87774.0,0.00017089]
[1766908308794,0.0114003,87787.0,87774.0,0.00017089]
[1766908309000,0.02417586,87786.0,87774.0,0.00017089]
[1766908309292,0.02417586,87785.0,87774.0,0.00017089]
[1766908309494,0.0114003,87787.0,87774.0,0.00017089]
[1766908309680,0.02417586,87786.0,87774.0,0.00017089]
[1766908309886,0.02417586,87785.0,87774.0,0.00017089]
[1766908310085,0.0114003,87787.0,87774.0,0.00017089]
[1766908310291,0.02417586,87786.0,87774.0,0.00017089]
[1766908310492,0.02417586,87785.0,87774.0,0.00017089]
[1766908310699,0.0114003,87787.0,87774.0,0.00017089]
[1766908310999,0.02417585,87786.0,87774.0,0.00017089]
[1766908311184,0.02417585,87785.0,87774.0,0.00017089]
[1766908311388,0.0114003,87787.0,87774.0,0.00017089]
[1766908311588,0.02417588,87786.0,87774.0,0.00017089]
[1766908311788,0.02417588,87785.0,87774.0,0.00017089]
[1766908312006,0.0114003,87787.0,87774.0,0.00017089]
[1766908312298,0.02417588,87786.0,87774.0,0.00017089]
[1766908312487,0.02417588,87785.0,87774.0,0.00017089]
[1766908312690,0.0114003,87787.0,87774.0,0.00017089]
[1766908312988,0.02417588,87786.0,87774.0,0.00017089]
[1766908313287,0.02417588,87785.0,87774.0,0.00017089]
[1766908313490,0.0114003,87787.0,87774.0,0.00017089]
[1766908313784,0.02417593,87786.0,87774.0,0.00017089]
[1766908313984,0.02417593,87785.0,87774.0,0.00017089]
[1766908314189,0.0114003,87787.0,87774.0,0.00017089]
[1766908314391,0.02417601,87786.0,87774.0,0.00017089]
[1766908314589,0.02417601,87785.0,87774.0,0.00017089]
[1766908314785,0.0114003,87787.0,87774.0,0.00017089]
[1766908314987,0.02417601,87786.0,87774.0,0.00017089]
[1766908315186,0.02417601,87785.0,87774.0,0.00017089]
[1766908315389,0.0114003,87787.0,87774.0,0.00017089]
[1766908315603,0.02417605,87786.0,87774.0,0.00017089]
[1766908315903,0.02417605,87785.0,87774.0,0.00017089]
[1766908316101,0.0114003,87787.0,87774.0,0.00017089]
[1766908316301,0.02417607,87786.0,87774.0,0.00017089]
[1766908316603,0.02417607,87785.0,87774.0,0.00017089]
[1766908316802,0.0114003,87787.0,87774.0,0.00017089]
[1766908316994,0.02417607,87786.0,87774.0,0.00017089]
[1766908317295,0.02417607,87785.0,87774.0,0.00017089]
[1766908317497,0.0114003,87787.0,87774.0,0.00017089]
[1766908317697,0.0241761,87786.0,87774.0,0.00017089]
[1766908317998,0.0241761,87785.0,87774.0,0.00017089]
[1766908318196,0.0114003,87787.0,87774.0,0.00017089]
[1766908318389,0.02417613,87786.0,87774.0,0.00017089]
[1766908318594,0.02417613,87785.0,87774.0,0.00017089]
[1766908318897,0.0114003,87787.0,87774.0,0.00017089]
[1766908319094,0.02417613,87786.0,87774.0,0.00017089]
[1766908319294,0.02417613,87785.0,87774.0,0.00017089]
[1766908319503,0.0114003,87787.0,87774.0,0.00017089]
[1766908319803,0.02417616,87786.0,87774.0,0.00017089]
[1766908320008,0.0114003,87787.0,87774.0,0.00017089]
[1766908320009,0.02417616,87785.0,87774.0,0.00017089]
[1766908320300,0.0114003,87787.0,87774.0,0.00017089]
[1766908320500,0.02417619,87786.0,87774.0,0.00017089]
[1766908320700,0.02417619,87785.0,87774.0,0.00017089]
[1766908320900,0.0114003,87787.0,87774.0,0.00017089]
[1766908321096,0.02417619,87786.0,87774.0,0.00017089]
[1766908321290,0.02417619,87785.0,87774.0,0.00017089]
[1766908321492,0.0114003,87787.0,87774.0,0.00017089]
[1766908321703,0.02417619,87786.0,87774.0,0.00017089]
[1766908321898,0.02417619,87785.0,87774.0,0.00017089]
[1766908322100,0.0114003,87787.0,87774.0,0.00017089]
[1766908322399,0.02417619,87786.0,87774.0,0.00017089]
[1766908322597,0.02417619,87785.0,87774.0,0.00017089]
[1766908322796,0.0114003,87787.0,87774.0,0.00017089]
[1766908322997,0.02417619,87786.0,87774.0,0.00017089]
[1766908323193,0.02417619,87785.0,87774.0,0.00017089]
[1766908323394,0.0114003,87787.0,87774.0,0.00017089]
[1766908323594,0.02417619,87786.0,87774.0,0.00017089]
[1766908323900,0.02417619,87785.0,87774.0,0.00017089]
[1766908324197,0.0114003,87787.0,87774.0,0.00017089]
[1766908324394,0.02417619,87786.0,87774.0,0.00017089]
[1766908324594,0.02417619,87785.0,87774.0,0.00017089]
[1766908324794,0.0114003,87787.0,87774.0,0.00017089]
[1766908325093,0.02417619,87786.0,87774.0,0.00017089]
[1766908325294,0.02417619,87785.0,87774.0,0.00017089]
[1766908325496,0.0114003,87787.0,87774.0,0.00017089]
[1766908325697,0.02417619,87786.0,87774.0,0.00017089]
[1766908325991,0.02417619,87785.0,87774.0,0.00017089]
[1766908326294,0.0114003,87787.0,87774.0,0.00017089]
[1766908326590,0.0241762,87786.0,87774.0,0.00017089]
[1766908326795,0.0241762,87785.0,87774.0,0.00017089]
[1766908327005,0.0114003,87787.0,87774.0,0.00017089]
[1766908327206,0.02432349,87786.0,87774.0,0.00017089]
[1766908327404,0.02432349,87785.0,87774.0,0.00017089]
[1766908327607,0.0114003,87787.0,87774.0,0.00017089]
[1766908327798,0.02432349,87786.0,87774.0,0.00017089]
[1766908328000,0.02432349,87785.0,87774.0,0.00017089]
[1766908328204,0.0114003,87787.0,87774.0,0.00017089]
[1766908328407,0.02432349,87786.0,87774.0,0.00017089]
[1766908328600,0.02432349,87785.0,87774.0,0.00017089]
[1766908328800,0.0114003,87787.0,87774.0,0.00017089]
[1766908329001,0.02432349,87786.0,87774.0,0.00017089]
[1766908329200,0.02432349,87785.0,87774.0,0.00017089]
[1766908329499,0.0114003,87787.0,87774.0,0.00017089]
[1766908329695,0.02432349,87786.0,87757.0,0.08203439]
[1766908329900,0.12577243,87790.0,87756.0,0.0684443]
[1766908329901,0.11437253,87780.0,87756.0,0.0684443]
[1766908330105,0.0114015,87778.0,87758.0,0.011404]
[1766908330407,0.0114017,87776.0,87760.0,0.0114037]
[1766908331005,0.00017089,87777.0,87759.0,0.00017089]
[1766908331206,0.00017089,87777.0,87762.0,0.0114034]
[1766908335018,0.01157259,87777.0,87759.0,0.01157479]
[1766908337111,0.01157259,87777.0,87761.0,0.0114036]
[1766908351638,0.0114019,87775.0,87759.0,0.00017089]
[1766908353040,0.0114019,87775.0,87760.0,0.0114038]
[1766908359350,0.0255003,87774.0,87760.0,0.0114038]
[1766908359542,0.0114019,87775.0,87760.0,0.0114038]
[1766908359742,0.0255003,87774.0,87760.0,0.0114038]
[1766908359945,0.0114019,87775.0,87760.0,0.0114038]
[1766908360148,0.0255003,87774.0,87760.0,0.0114038]
[1766908360350,0.0114019,87775.0,87760.0,0.0114038]
[1766908360550,0.02550162,87774.0,87760.0,0.0114038]
[1766908360750,0.0114019,87775.0,87760.0,0.0114038]
[1766908360948,0.02550162,87774.0,87760.0,0.0114038]
[1766908361147,0.0114019,87775.0,87760.0,0.0114038]
[1766908361346,0.02550162,87774.0,87760.0,0.0114038]
[1766908361552,0.0114019,87775.0,87760.0,0.0114038]
[1766908361850,0.02550162,87774.0,87760.0,0.0114038]
[1766908362051,0.0114019,87775.0,87760.0,0.0114038]
[1766908362250,0.02550162,87774.0,87760.0,0.0114038]
[1766908362453,0.0114019,87775.0,87760.0,0.0114038]
[1766908362652,0.02550162,87774.0,87760.0,0.0114038]
[1766908362853,0.0114019,87775.0,87760.0,0.0114038]
[1766908363044,0.02550162,87774.0,87760.0,0.0114038]
[1766908363339,0.0114019,87775.0,87760.0,0.0114038]
[1766908363543,0.02550163,87774.0,87760.0,0.0114038]
[1766908363744,0.0114019,87775.0,87760.0,0.0114038]
[1766908363945,0.02550163,87774.0,87760.0,0.0114038]
[1766908364144,0.00017089,87777.0,87762.0,0.0114035]
[1766908364347,0.02550163,87776.0,87762.0,0.0114035]
[1766908364547,0.02550163,87775.0,87762.0,0.0114035]
[1766908364839,0.02550163,87774.0,87762.0,0.0114035]
[1766908365044,0.0114017,87776.0,87762.0,0.0114035]
[1766908365248,0.02550163,87775.0,87762.0,0.0114035]
[1766908365448,0.02550163,87774.0,87762.0,0.0114035]
[1766908365653,0.0114017,87776.0,87762.0,0.0114035]
[1766908365846,0.02550165,87775.0,87762.0,0.0114035]
[1766908366047,0.02550165,87774.0,87762.0,0.0114035]
[1766908366247,0.0114017,87776.0,87762.0,0.0114035]
[1766908366548,0.02550166,87775.0,87762.0,0.0114035]
[1766908366853,0.02550166,87774.0,87762.0,0.0114035]
[1766908367053,0.0114017,87776.0,87762.0,0.0114035]
[1766908367358,0.02550167,87775.0,87762.0,0.0114035]
[1766908367541,0.02550167,87774.0,87762.0,0.0114035]
[1766908367844,0.0114017,87776.0,87762.0,0.0114035]
[1766908368039,0.02550167,87775.0,87762.0,0.0114035]
[1766908368245,0.02550167,87774.0,87762.0,0.0114035]
[1766908368542,0.0114017,87776.0,87762.0,0.0114035]
[1766908368745,0.02550168,87775.0,87762.0,0.0114035]
[1766908368941,0.02550168,87774.0,87762.0,0.0114035]
[1766908369145,0.0114017,87776.0,87762.0,0.0114035]
[1766908369342,0.02550169,87775.0,87762.0,0.0114035]
[1766908369552,0.02550169,87774.0,87762.0,0.0114035]
[1766908369745,0.0114017,87776.0,87762.0,0.0114035]
[1766908369952,0.02550169,87775.0,87762.0,0.0114035]
[1766908370152,0.02550169,87774.0,87762.0,0.0114035]
[1766908370351,0.0114017,87776.0,87762.0,0.0114035]
[1766908370553,0.02550171,87775.0,87762.0,0.0114035]
[1766908370754,0.02550171,87774.0,87762.0,0.0114035]
[1766908370951,0.0114017,87776.0,87762.0,0.0114035]
[1766908371152,0.02550171,87775.0,87762.0,0.0114035]
[1766908371348,0.02550171,87774.0,87762.0,0.0114035]
[1766908371548,0.0114017,87776.0,87762.0,0.0114035]
[1766908371748,0.02550172,87775.0,87762.0,0.0114035]
[1766908371953,0.02550172,87774.0,87762.0,0.0114035]
[1766908372158,0.0114017,87776.0,87762.0,0.0114035]
[1766908372454,0.02550174,87775.0,87762.0,0.0114035]
[1766908372659,0.02550174,87774.0,87762.0,0.0114035]
[1766908372858,0.0114017,87776.0,87762.0,0.0114035]
[1766908373155,0.02550174,87775.0,87762.0,0.0114035]
[1766908373356,0.02550174,87774.0,87762.0,0.0114035]
[1766908373559,0.0114017,87776.0,87762.0,0.0114035]
[1766908373759,0.02550176,87775.0,87762.0,0.0114035]
[1766908373957,0.02550176,87774.0,87762.0,0.0114035]
[1766908374157,0.0114017,87776.0,87762.0,0.0114035]
[1766908374358,0.02550179,87775.0,87762.0,0.0114035]
[1766908374659,0.02550179,87774.0,87762.0,0.0114035]
[1766908374857,0.0114017,87776.0,87762.0,0.0114035]
[1766908375065,0.02550179,87775.0,87762.0,0.0114035]
[1766908375262,0.02550179,87774.0,87762.0,0.0114035]
[1766908375561,0.0114017,87776.0,87762.0,0.0114035]
[1766908375764,0.02550179,87775.0,87762.0,0.0114035]
[1766908375959,0.02550179,87774.0,87762.0,0.0114035]
[1766908376153,0.0114017,87776.0,87762.0,0.0114035]
[1766908376357,0.02550179,87775.0,87762.0,0.0114035]
[1766908376558,0.02550179,87774.0,87762.0,0.0114035]
[1766908376758,0.0114017,87776.0,87762.0,0.0114035]
[1766908376960,0.02550179,87775.0,87762.0,0.0114035]
[1766908377164,0.02550179,87774.0,87762.0,0.0114035]
[1766908377362,0.0114017,87776.0,87762.0,0.0114035]
[1766908377662,0.02550179,87775.0,87762.0,0.0114035]
[1766908377862,0.02550179,87774.0,87762.0,0.0114035]
[1766908378050,0.0114017,87776.0,87762.0,0.0114035]
[1766908378254,0.02550179,87775.0,87762.0,0.0114035]
[1766908378555,0.02550179,87774.0,87762.0,0.0114035]
[1766908378754,0.0114017,87776.0,87762.0,0.0114035]
[1766908378962,0.02550181,87775.0,87762.0,0.0114035]
[1766908379164,0.02550181,87774.0,87762.0,0.0114035]
[1766908379364,0.0114017,87776.0,87762.0,0.0114035]
[1766908379561,0.02550183,87775.0,87762.0,0.0114035]
[1766908379764,0.02550183,87774.0,87762.0,0.0114035]
[1766908379962,0.0114017,87776.0,87762.0,0.0114035]
[1766908380162,0.02550183,87775.0,87762.0,0.0114035]
[1766908380362,0.02550183,87774.0,87762.0,0.0114035]
[1766908380563,0.0114017,87776.0,87762.0,0.0114035]
[1766908380763,0.02550187,87775.0,87762.0,0.0114035]
[1766908380964,0.02550187,87774.0,87762.0,0.0114035]
[1766908381264,0.00017089,87777.0,87762.0,0.0114035]
[1766908381466,0.00017089,87777.0,87740.0,0.10254299]
[1766908381467,0.0114024,87771.0,87740.0,0.10254299]
[1766908381667,0.0114024,87771.0,87745.0,0.0114057]
[1766908381668,0.11441306,87760.0,87745.0,0.0114057]
[1766908382065,0.11441306,87760.0,87747.0,0.0114054]
[1766908382262,0.11441306,87760.0,87744.0,0.0114058]
[1766908382463,0.11441306,87760.0,87743.0,0.16781619]
[1766908382664,0.05704,87764.0,87745.0,0.0114056]
[1766908382969,0.11441306,87760.0,87747.0,0.0114054]
[1766908384770,0.05704,87764.0,87747.0,0.0114054]
[1766908392073,0.09692,87768.0,87744.0,0.15396]
[1766908392277,0.011402,87774.0,87756.0,0.0114043]
[1766908392478,0.05704,87776.0,87756.0,0.0114043]
[1766908392679,0.011402,87774.0,87756.0,0.0114043]
[1766908392879,0.05704,87776.0,87756.0,0.0114043]
[1766908393076,0.0259511,87775.0,87756.0,0.0114043]
[1766908393280,0.0261369,87774.0,87758.0,0.0114039]
[1766908393466,0.05704,87776.0,87761.0,0.0114036]
[1766908393669,0.0261369,87775.0,87761.0,0.0114036]
[1766908393869,0.0261369,87774.0,87764.0,0.0114033]
[1766908394177,0.05704,87776.0,87764.0,0.0114033]
[1766908394377,0.02613726,87775.0,87764.0,0.0114033]
[1766908394577,0.02613726,87774.0,87764.0,0.0114033]
[1766908394877,0.05704,87776.0,87764.0,0.0114033]
[1766908395080,0.02613724,87775.0,87764.0,0.0114033]
[1766908395381,0.05704,87776.0,87764.0,0.0114033]
[1766908395565,0.02613763,87775.0,87764.0,0.0114033]
[1766908395771,0.05704,87776.0,87764.0,0.0114033]
[1766908395971,0.02613763,87775.0,87764.0,0.0114033]
[1766908396178,0.05704,87776.0,87764.0,0.0114033]
[1766908396379,0.02613815,87775.0,87764.0,0.0114033]
[1766908396681,0.05704,87776.0,87764.0,0.0114033]
[1766908399081,0.05704,87776.0,87760.0,0.00017089]
[1766908401186,0.05704,87776.0,87764.0,0.0114032]
[1766908402181,0.02614102,87775.0,87764.0,0.0114032]
[1766908402385,0.0261413,87774.0,87764.0,0.0114032]
[1766908402582,0.05704,87776.0,87764.0,0.0114032]
[1766908402782,0.0261413,87775.0,87764.0,0.0114032]
[1766908402987,0.05704,87776.0,87764.0,0.0114032]
[1766908402988,0.0261413,87774.0,87764.0,0.0114032]
[1766908403179,0.05704,87776.0,87764.0,0.0114032]
[1766908403380,0.02614207,87775.0,87764.0,0.0114032]
[1766908403580,0.02614207,87774.0,87764.0,0.0114032]
[1766908403778,0.05704,87776.0,87764.0,0.0114032]
[1766908403982,0.02614207,87775.0,87764.0,0.0114032]
[1766908404179,0.02614207,87774.0,87764.0,0.0114032]
[1766908404388,0.05704,87776.0,87764.0,0.0114032]
[1766908404686,0.02614288,87775.0,87764.0,0.0114032]
[1766908404887,0.02614288,87774.0,87764.0,0.0114032]
[1766908405084,0.05704,87776.0,87764.0,0.0114032]
[1766908405283,0.02614324,87775.0,87764.0,0.0114032]
[1766908405486,0.02614324,87774.0,87764.0,0.0114032]
[1766908405686,0.05704,87776.0,87764.0,0.0114032]
[1766908405884,0.02614375,87775.0,87764.0,0.0114032]
[1766908406082,0.02614375,87774.0,87764.0,0.0114032]
[1766908406294,0.05704,87776.0,87764.0,0.0114032]
[1766908406580,0.02614467,87775.0,87764.0,0.0114032]
[1766908406781,0.02614467,87774.0,87764.0,0.0114032]
[1766908406981,0.05704,87776.0,87764.0,0.0114032]
[1766908407175,0.02614467,87775.0,87764.0,0.0114032]
[1766908407375,0.02614467,87774.0,87764.0,0.0114032]
[1766908407575,0.02614467,87773.0,87764.0,0.0114032]
[1766908407776,0.05704,87776.0,87764.0,0.0114032]
[1766908407976,0.02614564,87775.0,87764.0,0.0114032]
[1766908408188,0.02614564,87774.0,87766.0,0.0114029]
[1766908408381,0.02614564,87773.0,87766.0,0.0114029]
[1766908408587,0.05704,87776.0,87766.0,0.0114029]
[1766908408788,0.0261467,87775.0,87766.0,0.0114029]
[1766908409086,0.0261467,87774.0,87766.0,0.0114029]
[1766908409291,0.0261467,87773.0,87766.0,0.0114029]
[1766908409478,0.05704,87776.0,87766.0,0.0114029]
[1766908409685,0.02614783,87775.0,87766.0,0.0114029]
[1766908409990,0.02614783,87774.0,87766.0,0.0114029]
[1766908410190,0.02614783,87773.0,87766.0,0.0114029]
[1766908410390,0.05704,87776.0,87766.0,0.0114029]
[1766908410587,0.02614797,87775.0,87766.0,0.0114029]
[1766908410785,0.02614797,87774.0,87766.0,0.0114029]
[1766908410992,0.02614797,87773.0,87766.0,0.0114029]
[1766908411189,0.05704,87776.0,87766.0,0.0114029]
[1766908411388,0.02614913,87775.0,87766.0,0.0114029]
[1766908411592,0.02614913,87774.0,87766.0,0.0114029]
[1766908411897,0.02614913,87773.0,87766.0,0.0114029]
[1766908412191,0.05704,87776.0,87766.0,0.0114029]
[1766908412392,0.02614902,87775.0,87766.0,0.0114029]
[1766908412593,0.02614902,87774.0,87766.0,0.0114029]
[1766908412795,0.02614902,87773.0,87766.0,0.0114029]
[1766908412985,0.05704,87776.0,87766.0,0.0114029]
[1766908413185,0.02614902,87775.0,87766.0,0.0114029]
[1766908413388,0.02614902,87774.0,87766.0,0.0114029]
[1766908413596,0.02614902,87773.0,87766.0,0.0114029]
[1766908413798,0.05704,87776.0,87766.0,0.0114029]
[1766908413997,0.0261493,87775.0,87766.0,0.0114029]
[1766908414296,0.0261493,87774.0,87766.0,0.0114029]
[1766908414496,0.0261493,87773.0,87766.0,0.0114029]
[1766908414695,0.05704,87776.0,87766.0,0.0114029]
[1766908414897,0.02614971,87775.0,87766.0,0.0114029]
[1766908415084,0.02614971,87774.0,87766.0,0.0114029]
[1766908415284,0.02614971,87773.0,87766.0,0.0114029]
[1766908415497,0.05704,87776.0,87766.0,0.0114029]
[1766908415699,0.02615048,87775.0,87766.0,0.0114029]
[1766908415899,0.02615048,87774.0,87766.0,0.0114029]
[1766908416098,0.02615048,87773.0,87766.0,0.0114029]
[1766908416400,0.05704,87776.0,87766.0,0.0114029]
[1766908416602,0.02615154,87775.0,87766.0,0.0114029]
[1766908416806,0.02615154,87774.0,87766.0,0.0114029]
[1766908416992,0.02615154,87773.0,87766.0,0.0114029]
[1766908417196,0.05704,87776.0,87766.0,0.0114029]
[1766908417399,0.02601228,87775.0,87766.0,0.0114029]
[1766908417598,0.02601228,87774.0,87766.0,0.0114029]
[1766908417801,0.02601228,87773.0,87766.0,0.0114029]
[1766908417999,0.05704,87776.0,87766.0,0.0114029]
[1766908418201,0.02601228,87775.0,87766.0,0.0114029]
[1766908418506,0.02601228,87774.0,87766.0,0.0114029]
[1766908418692,0.02601228,87773.0,87766.0,0.0114029]
[1766908418892,0.02601228,87772.0,87766.0,0.0114029]
[1766908419093,0.05704,87776.0,87766.0,0.0114029]
[1766908419295,0.02601555,87775.0,87766.0,0.0114029]
[1766908419497,0.02601555,87774.0,87766.0,0.0114029]
[1766908419701,0.02601555,87773.0,87766.0,0.0114029]
[1766908419899,0.02601555,87772.0,87766.0,0.0114029]
[1766908420101,0.05704,87776.0,87766.0,0.0114029]
[1766908420301,0.02601779,87775.0,87766.0,0.0114029]
[1766908420600,0.02601779,87774.0,87766.0,0.0114029]
[1766908420798,0.02601779,87773.0,87766.0,0.0114029]
[1766908421000,0.02601779,87772.0,87766.0,0.0114029]
[1766908421207,0.05704,87776.0,87766.0,0.0114029]
[1766908421395,0.02602064,87775.0,87766.0,0.0114029]
[1766908421595,0.02602064,87774.0,87766.0,0.0114029]
[1766908421796,0.02602064,87773.0,87766.0,0.0114029]
[1766908421998,0.02602064,87772.0,87766.0,0.0114029]
[1766908422201,0.02602574,87771.0,87766.0,0.0114029]
[1766908422401,0.05704,87776.0,87766.0,0.0114029]
[1766908422599,0.02602574,87775.0,87766.0,0.0114029]
[1766908422805,0.02602574,87774.0,87766.0,0.0114029]
[1766908423002,0.02602574,87773.0,87766.0,0.0114029]
[1766908423203,0.02602574,87772.0,87766.0,0.0114029]
[1766908423402,0.02602574,87771.0,87766.0,0.0114029]
[1766908423604,0.05704,87776.0,87766.0,0.0114029]
[1766908423903,0.02602648,87775.0,87766.0,0.0114029]
[1766908424104,0.02602648,87774.0,87766.0,0.0114029]
[1766908424302,0.02602648,87773.0,87766.0,0.0114029]
[1766908424501,0.02602648,87772.0,87766.0,0.0114029]
[1766908424704,0.02602648,87771.0,87766.0,0.0114029]
[1766908424904,0.05704,87776.0,87766.0,0.0114029]
[1766908425205,0.0260273,87775.0,87766.0,0.0114029]
[1766908425400,0.0260273,87774.0,87766.0,0.0114029]
[1766908425600,0.0260273,87773.0,87766.0,0.0114029]
[1766908425899,0.0260273,87772.0,87766.0,0.0114029]
[1766908426101,0.0260273,87771.0,87766.0,0.0114029]
[1766908426299,0.05704,87776.0,87766.0,0.0114029]
[1766908426500,0.02589227,87775.0,87766.0,0.0114029]
[1766908426706,0.02589227,87774.0,87766.0,0.0114029]
[1766908427005,0.02589227,87773.0,87766.0,0.0114029]
[1766908427304,0.02589227,87772.0,87766.0,0.0114029]
[1766908427506,0.02589227,87771.0,87766.0,0.0114029]
[1766908427708,0.05704,87776.0,87766.0,0.0114029]
[1766908428006,0.02589232,87775.0,87766.0,0.0114029]
[1766908428206,0.02589232,87774.0,87766.0,0.0114029]
[1766908428402,0.02589232,87773.0,87766.0,0.0114029]
[1766908428601,0.02589232,87772.0,87766.0,0.0114029]
[1766908428809,0.02589232,87771.0,87766.0,0.0114029]
[1766908429009,0.05704,87776.0,87766.0,0.0114029]
[1766908429207,0.02589236,87775.0,87766.0,0.0114029]
[1766908429407,0.02589236,87774.0,87766.0,0.0114029]
[1766908429608,0.02589236,87773.0,87766.0,0.0114029]
[1766908429807,0.02589236,87772.0,87766.0,0.0114029]
[1766908429999,0.02589236,87771.0,87766.0,0.0114029]
[1766908430199,0.05704,87776.0,87766.0,0.0114029]
[1766908430399,0.02589232,87775.0,87766.0,0.0114029]
[1766908430599,0.05704,87776.0,87766.0,0.0114029]
[1766908430600,0.02589232,87774.0,87766.0,0.0114029]
[1766908430800,0.02589232,87773.0,87766.0,0.0114029]
[1766908431099,0.02589232,87772.0,87766.0,0.0114029]
[1766908431305,0.02589232,87771.0,87766.0,0.0114029]
[1766908431508,0.05704,87776.0,87766.0,0.0114029]
[1766908431810,0.02589231,87775.0,87766.0,0.0114029]
[1766908432002,0.02589231,87774.0,87766.0,0.0114029]
[1766908432203,0.02589231,87773.0,87766.0,0.0114029]
[1766908432405,0.02589231,87772.0,87766.0,0.0114029]
[1766908432704,0.02589231,87771.0,87766.0,0.0114029]
[1766908432905,0.05704,87776.0,87766.0,0.0114029]
[1766908433103,0.02589231,87775.0,87766.0,0.0114029]
[1766908433303,0.02589231,87774.0,87766.0,0.0114029]